fUST/lending_fUST_20250428
["ID","MTS","AMOUNT","RATE_DAILY","PERIOD"]
[359221304,1745836234974,-151.0,0.0003,7]
[359221305,1745836234983,-160.0,0.0003,7]
[359221306,1745836234992,-161050.37571029,0.0003,15]
[359221387,1745836240786,-548.88030465,0.00025989,2]
[359221388,1745836240795,-181.09289176,0.00025989,2]
[359221389,1745836240804,-500.0,0.00025989,2]
[359221390,1745836240814,-231.83168752,0.00025989,2]
[359221391,1745836240823,-62.91703377,0.00025989,2]
[359221481,1745837432865,-159.13584982,0.00018485,2]
[359221482,1745837432876,-280.14039261,0.00018585,2]
[359221483,1745837432885,-151.0,0.00018585,2]
[359221484,1745837432896,-151.0,0.00019954,2]
[359221485,1745837432907,-300.0,0.00023541,2]
[359221486,1745837432916,-300.0,0.00023541,2]
[359221487,1745837432927,-1200.0,0.00023541,2]
[359221488,1745837432936,-17461.2125576,0.00023542,2]
[359221489,1745837432947,-500.0,0.00023573,2]
[359221490,1745837432956,-500.0,0.00023573,2]
[359221491,1745837432965,-500.0,0.00023573,2]
[359221492,1745837432976,-269.04874422,0.00023573,2]
[359221493,1745837432985,-500.0,0.00023573,2]
[359221494,1745837432995,-500.0,0.000236,2]
[359221495,1745837433005,-500.0,0.000236,2]
[359221496,1745837433015,-228.21447654,0.000236,2]
[359221497,1745837433024,-500.0,0.000236,2]
[359221498,1745837433034,-500.0,0.000236,2]
[359221499,1745837433044,-500.0,0.000236,2]
[359221500,1745837433053,-37444.4904512,0.000236,2]
[359221501,1745837433064,-908.95308354,0.00023899,2]
[359221502,1745837433073,-537.17424933,0.000239,5]
[359221503,1745837433083,-500.0,0.00023973,2]
[359221504,1745837433092,-500.0,0.00023973,2]
[359221505,1745837433102,-500.0,0.00023973,2]
[359221506,1745837433111,-500.0,0.00023973,2]
[359221507,1745837433121,-500.0,0.00023973,2]
[359221508,1745837433130,-500.0,0.00023973,2]
[359221509,1745837433140,-300.0,0.00023973,2]
[359221510,1745837433149,-270.17522577,0.00023973,2]
[359221511,1745837433159,-500.0,0.00023973,2]
[359221512,1745837433168,-500.0,0.00023973,2]
[359221513,1745837433178,-500.0,0.00023973,2]
[359221514,1745837433187,-500.0,0.00023973,2]
[359221515,1745837433197,-500.0,0.00023973,2]
[359221516,1745837433206,-523.92757597,0.00023973,2]
[359221517,1745837433216,-530.38835807,0.00023973,2]
[359221518,1745837433225,-384.21621325,0.00023998,2]
[359221519,1745837433235,-500.0,0.00023998,2]
[359221520,1745837433247,-493.40707114,0.00023998,2]
[359221521,1745837433257,-500.0,0.00023999,2]
[359221522,1745837433267,-1998.66274036,0.00023999,2]
[359221523,1745837433278,-1998.66274037,0.00023999,2]
[359221524,1745837433287,-1998.66274037,0.00023999,2]
[359221525,1745837433297,-1998.66274037,0.00023999,2]
[359221526,1745837433307,-1998.66274037,0.00023999,2]
[359221527,1745837433317,-1998.66274037,0.00023999,2]
[359221528,1745837433327,-1998.66274037,0.00023999,2]
[359221529,1745837433336,-5008.39959289,0.00024,2]
[359221530,1745837433347,-190.5960806,0.00024,6]
[359221531,1745837433357,-537.17424923,0.00024452,5]
[359221532,1745837433367,-661.62777982,0.00024649,2]
[359221533,1745837433377,-159.13584981,0.00024802,2]
[359221534,1745837433386,-500.0,0.00024873,2]
[359221535,1745837433395,-500.0,0.00024873,2]
[359221536,1745837433404,-505.16572172,0.00024873,2]
[359221537,1745837433414,-500.0,0.00024873,2]
[359221538,1745837433423,-500.0,0.00024873,2]
[359221539,1745837433433,-500.0,0.00024873,2]
[359221540,1745837433443,-500.0,0.00024873,2]
[359221541,1745837433547,-500.0,0.00024873,2]
[359221542,1745837433558,-500.0,0.00024873,2]
[359221543,1745837433568,-500.0,0.00024873,2]
[359221544,1745837433578,-500.0,0.00024873,2]
[359221545,1745837433587,-500.0,0.00024873,2]
[359221546,1745837433598,-500.0,0.00024873,2]
[359221547,1745837433607,-500.0,0.00024873,2]
[359221548,1745837433616,-500.0,0.00024873,2]
[359221549,1745837433626,-500.0,0.00024873,2]
[359221550,1745837433635,-500.37074444,0.00024873,2]
[359221551,1745837433646,-155.059,0.00024897,2]
[359221552,1745837433656,-150.0,0.00024973,2]
[359221553,1745837433666,-128062.10488743,0.00024992,2]
[359221554,1745837433679,-24296.49546757,0.00024992,2]
[359221555,1745837433689,-4685.35244552,0.00024992,2]
[359221556,1745837433699,-537.17424923,0.00025003,5]
[359221557,1745837433708,-76179.3001777,0.00025063,2]
[359221558,1745837433718,-2342.67622276,0.00025063,2]
[359221559,1745837433727,-500.0,0.00025073,2]
[359221560,1745837433737,-500.0,0.00025073,2]
[359221561,1745837433747,-500.0,0.00025073,2]
[359221562,1745837433756,-500.0,0.00025073,2]
[359221563,1745837433766,-250.0,0.00025521,2]
[359221564,1745837433775,-420.0,0.00025541,2]
[359221565,1745837433786,-420.0,0.00025541,2]
[359221566,1745837433795,-537.17424923,0.00025555,6]
[359221567,1745837433805,-1210.77081153,0.00025599,2]
[359221568,1745837433814,-600.0,0.00025616,2]
[359221569,1745837433823,-267.895311,0.0002563,2]
[359221570,1745837433833,-1680.0,0.00025658,2]
[359221571,1745837433843,-243.7945727,0.00025699,2]
[359221572,1745837433853,-500.0,0.00025873,2]
[359221573,1745837433862,-500.0,0.00025873,2]
[359221574,1745837433872,-173.61579542,0.00025873,2]
[359221575,1745837433882,-500.0,0.00025873,2]
[359221576,1745837433892,-500.0,0.00025873,2]
[359221577,1745837433906,-490.14521912,0.00025873,2]
[359221578,1745837433916,-500.0,0.00025873,2]
[359221579,1745837433924,-500.0,0.00025873,2]
[359221580,1745837433934,-474.83138899,0.00025882,2]
[359221581,1745837433945,-304.36672951,0.00026,30]
[359221582,1745837433955,-500.0,0.00026,30]
[359221583,1745837433965,-726.12066483,0.00026048,2]
[359221584,1745837433975,-350.0,0.00026068,2]
[359221585,1745837433986,-537.17424923,0.00026107,6]
[359221586,1745837433998,-908.9530835,0.00026133,2]
[359221587,1745837434007,-505.51093352,0.00026573,2]
[359221588,1745837434017,-500.0,0.00026573,2]
[359221589,1745837434026,-500.0,0.00026573,2]
[359221590,1745837434037,-500.0,0.00026573,2]
[359221591,1745837434046,-500.0,0.00026573,2]
[359221592,1745837434056,-154.94,0.000266,31]
[359221593,1745837434066,-450.0,0.00026616,2]
[359221594,1745837434076,-1184.37156096,0.00026657,2]
[359221595,1745837434086,-151.0,0.00026658,2]
[359221596,1745837434096,-207.4,0.00026658,2]
[359221597,1745837434106,-537.17424923,0.00026659,6]
[359221598,1745837434115,-483.07047651,0.00027139,2]
[359221599,1745837434126,-550.0,0.00027164,2]
[359221600,1745837434136,-537.17424923,0.0002721,7]
[359221601,1745837434146,-900.0,0.0002726,2]
[359221602,1745837434156,-500.0,0.00027373,2]
[359221603,1745837434166,-76179.3001777,0.00027387,2]
[359221604,1745837434177,-2342.67622276,0.00027387,2]
[359221605,1745837434187,-151.0,0.00027397,2]
[359221606,1745837434197,-151.0,0.00027397,2]
[359221607,1745837434207,-299.15238816,0.00027397,2]
[359221608,1745837434217,-151.0,0.00027397,2]
[359221609,1745837434226,-151.69231407,0.00027397,2]
[359221610,1745837434236,-500.0,0.00027397,2]
[359221611,1745837434249,-500.0,0.00027397,2]
[359221612,1745837434259,-448.03823886,0.00027397,2]
[359221613,1745837434269,-152.41309121,0.00027397,2]
[359221614,1745837434278,-151.0,0.00027397,2]
[359221615,1745837434288,-151.0,0.00027397,2]
[359221616,1745837434298,-151.0,0.00027397,2]
[359221617,1745837434307,-152.38565028,0.00027397,2]
[359221618,1745837434317,-500.0,0.00027397,2]
[359221619,1745837434327,-500.0,0.00027397,2]
[359221620,1745837434337,-500.0,0.00027397,2]
[359221621,1745837434346,-248.14229278,0.00027397,2]
[359221622,1745837434355,-151.70183707,0.00027397,2]
[359221623,1745837434364,-151.71178679,0.00027397,2]
[359221624,1745837434373,-500.0,0.00027397,2]
[359221625,1745837434383,-500.0,0.00027397,2]
[359221626,1745837434392,-164.09472927,0.00027397,2]
[359221627,1745837434401,-500.0,0.00027397,2]
[359221628,1745837434410,-500.0,0.00027397,2]
[359221629,1745837434419,-478.46930441,0.00027397,2]
[359221630,1745837434429,-500.0,0.00027397,2]
[359221631,1745837434437,-500.0,0.00027397,2]
[359221632,1745837434446,-500.0,0.00027397,2]
[359221633,1745837434456,-155.39338486,0.00027397,2]
[359221634,1745837434465,-204.94675578,0.00027397,2]
[359221635,1745837434475,-500.0,0.00027397,2]
[359221636,1745837434484,-500.0,0.00027397,2]
[359221637,1745837434493,-500.0,0.00027397,2]
[359221638,1745837434502,-500.0,0.00027397,2]
[359221639,1745837434512,-500.0,0.00027397,2]
[359221640,1745837434521,-500.0,0.00027397,2]
[359221641,1745837434531,-500.0,0.00027397,2]
[359221642,1745837434540,-500.0,0.00027397,2]
[359221643,1745837434550,-500.0,0.00027397,2]
[359221644,1745837434559,-205.37054896,0.00027397,2]
[359221645,1745837434569,-151.0,0.00027397,2]
[359221646,1745837434579,-151.0,0.00027397,2]
[359221647,1745837434589,-151.0,0.00027397,2]
[359221648,1745837434599,-201.03152279,0.00027397,2]
[359221649,1745837434609,-151.0,0.00027397,2]
[359221650,1745837434618,-151.0,0.00027397,2]
[359221651,1745837434627,-151.0,0.00027397,2]
[359221652,1745837434636,-151.0,0.00027397,2]
[359221653,1745837434645,-151.0,0.00027397,2]
[359221654,1745837434655,-199.96393014,0.00027397,2]
[359221655,1745837434664,-166.95046862,0.00027397,2]
[359221656,1745837434673,-500.0,0.00027397,2]
[359221657,1745837434683,-500.0,0.00027397,2]
[359221658,1745837434692,-500.0,0.00027397,2]
[359221659,1745837434702,-500.0,0.00027397,2]
[359221660,1745837434711,-500.0,0.00027397,2]
[359221661,1745837434720,-500.0,0.00027397,2]
[359221662,1745837434809,-500.0,0.00027397,2]
[359221663,1745837434819,-557.43500258,0.00027397,2]
[359221664,1745837434828,-169.25133521,0.00027397,2]
[359221665,1745837434838,-151.0,0.00027397,2]
[359221666,1745837434847,-151.0,0.00027397,2]
[359221667,1745837434856,-240.12164779,0.00027397,2]
[359221668,1745837434865,-151.0,0.00027397,2]
[359221669,1745837434875,-151.0,0.00027397,2]
[359221670,1745837434885,-151.0,0.00027397,2]
[359221671,1745837434908,-301.74055788,0.00027397,2]
[359221672,1745837434918,-151.0,0.00027397,2]
[359221673,1745837434930,-161.68385417,0.00027397,2]
[359221674,1745837434942,-500.0,0.00027397,2]
[359221675,1745837434953,-500.0,0.00027397,2]
[359221676,1745837434964,-202.52423961,0.00027397,2]
[359221677,1745837434975,-153.10602342,0.00027397,2]
[359221678,1745837434987,-151.60395604,0.00027397,2]
[359221679,1745837434999,-463.0,0.00027397,2]
[359221680,1745837435010,-463.0,0.00027397,2]
[359221681,1745837435020,-463.0,0.00027397,2]
[359221682,1745837435031,-463.0,0.00027397,2]
[359221683,1745837435042,-463.0,0.00027397,2]
[359221684,1745837435053,-463.0,0.00027397,2]
[359221685,1745837435064,-463.0,0.00027397,2]
[359221686,1745837435075,-463.0,0.00027397,2]
[359221687,1745837435085,-463.0,0.00027397,2]
[359221688,1745837435097,-463.0,0.00027397,2]
[359221689,1745837435107,-463.0,0.00027397,2]
[359221690,1745837435118,-463.0,0.00027397,2]
[359221691,1745837435129,-463.0,0.00027397,2]
[359221692,1745837435140,-463.0,0.00027397,2]
[359221693,1745837435151,-463.0,0.00027397,2]
[359221694,1745837435162,-463.0,0.00027397,2]
[359221695,1745837435172,-463.0,0.00027397,2]
[359221696,1745837435183,-463.0,0.00027397,2]
[359221697,1745837435194,-463.0,0.00027397,2]
[359221698,1745837435205,-463.0,0.00027397,2]
[359221699,1745837435216,-463.0,0.00027397,2]
[359221700,1745837435225,-463.0,0.00027397,2]
[359221701,1745837435235,-463.0,0.00027397,2]
[359221702,1745837435246,-482.95185766,0.00027397,2]
[359221703,1745837435256,-202.66943809,0.00027397,2]
[359221704,1745837435266,-500.0,0.00027397,2]
[359221705,1745837435276,-500.0,0.00027397,2]
[359221706,1745837435285,-500.0,0.00027397,2]
[359221707,1745837435295,-500.0,0.00027397,2]
[359221708,1745837435305,-650.09118324,0.00027397,2]
[359221709,1745837435315,-151.0,0.00027397,2]
[359221710,1745837435325,-151.0,0.00027397,2]
[359221711,1745837435334,-151.0,0.00027397,2]
[359221712,1745837435345,-253.45580285,0.00027397,2]
[359221713,1745837435355,-151.0,0.00027397,2]
[359221714,1745837435365,-500.0,0.00027397,2]
[359221715,1745837435374,-500.0,0.00027397,2]
[359221716,1745837435385,-500.0,0.00027397,2]
[359221717,1745837435416,-500.0,0.00027397,2]
[359221718,1745837435435,-500.0,0.00027397,2]
[359221719,1745837435459,-500.0,0.00027397,2]
[359221720,1745837435480,-500.0,0.00027397,2]
[359221721,1745837435501,-500.0,0.00027397,2]
[359221722,1745837435522,-500.0,0.00027397,2]
[359221723,1745837435541,-568.70498264,0.00027397,2]
[359221724,1745837435556,-500.0,0.00027397,2]
[359221725,1745837435574,-500.0,0.00027397,2]
[359221726,1745837435596,-500.0,0.00027397,2]
[359221727,1745837435615,-463.74156318,0.00027397,2]
[359221728,1745837435628,-3983.667456,0.00027397,120]
[359221729,1745837435646,-1204.578187,0.00027397,2]
[359221730,1745837435662,-150.0,0.00027397,5]
[359221731,1745837435679,-500.0,0.00027397,5]
[359221732,1745837435694,-300.0,0.00027711,2]
[359221733,1745837435709,-587.0,0.00027711,2]
[359221734,1745837435726,-650.0,0.00027712,5]
[359221735,1745837435744,-537.17424923,0.00027762,7]
[359221736,1745837435759,-151.0,0.00027945,5]
[359221737,1745837435777,-1200.0,0.00027966,2]
[359221738,1745837435799,-151.0,0.00028027,2]
[359221739,1745837435817,-215.0738,0.00028027,2]
[359221740,1745837435835,-500.0,0.00028186,5]
[359221741,1745837435852,-500.0,0.00028186,5]
[359221742,1745837435868,-750.0,0.0002826,5]
[359221743,1745837435883,-537.17424923,0.00028314,7]
[359221744,1745837435900,-908.9530835,0.00028368,2]
[359221745,1745837435915,-152.0,0.00028493,5]
[359221746,1745837435929,-155.30567793,0.000285,4]
[359221747,1745837435944,-318.59822143,0.000285,4]
[359221748,1745837436421,-181.40177857,0.000285,4]
[359221749,1745837436431,-500.0,0.000285,4]
[359221750,1745837436440,-13.60326527,0.000285,4]
[359221751,1745837436453,-486.39673473,0.000285,4]
[359221752,1745837436463,-500.0,0.000285,4]
[359221753,1745837436472,-500.0,0.000285,4]
[359221754,1745837436483,-500.0,0.000285,4]
[359221755,1745837436493,-450.13799953,0.000285,4]
[359221756,1745837436507,-500.0,0.000285,4]
[359221757,1745837436517,-500.0,0.000285,4]
[359221758,1745837436527,-595.9020821,0.000285,4]
[359221759,1745837436538,-151.37973075,0.000285,4]
[359221760,1745837436547,-500.0,0.000285,4]
[359221761,1745837436557,-500.0,0.000285,4]
[359221762,1745837436568,-500.0,0.000285,4]
[359221763,1745837436578,-626.02919052,0.000285,4]
[359221764,1745837436587,-2559.1069462,0.000285,4]
[359221765,1745837436595,-76179.3001777,0.00028522,2]
[359221766,1745837436604,-2342.67622276,0.00028522,2]
[359221767,1745837436612,-500.0,0.00028683,10]
[359221768,1745837436621,-500.0,0.00028683,10]
[359221769,1745837436629,-850.0,0.00028808,5]
[359221770,1745837436637,-288.59870689,0.0002884,2]
[359221771,1745837436647,-537.17424923,0.00028866,8]
[359221772,1745837436657,-1200.0,0.00028904,5]
[359221773,1745837436666,-157.27107999,0.00029041,5]
[359221774,1745837436675,-1000.0,0.00029052,5]
[359221775,1745837436685,-502.46609455,0.00029079,5]
[359221776,1745837436694,-697.30437329,0.00029079,5]
[359221777,1745837436704,-478.09140376,0.00029079,5]
[359221778,1745837436714,-288.59870689,0.0002914,2]
[359221779,1745837436723,-545.0,0.00029189,2]
[359221780,1745837436732,-707.0,0.00029189,2]
[359221781,1745837436742,-2245.0,0.00029189,2]
[359221782,1745837436753,-403.0,0.00029189,2]
[359221783,1745837436762,-950.0,0.00029356,5]
[359221784,1745837436772,-634.2,0.0002937,15]
[359221785,1745837436782,-223.0315306,0.00029396,2]
[359221786,1745837436792,-154.94,0.000294,31]
[359221787,1745837436803,-154.94,0.000294,31]
[359221788,1745837436813,-537.17424923,0.00029417,8]
[359221789,1745837436823,-1039.84109292,0.00029436,2]
[359221790,1745837436832,-1000.0,0.00029452,5]
[359221791,1745837436841,-506.26721666,0.00029452,5]
[359221792,1745837436851,-1000.0,0.00029452,5]
[359221793,1745837436861,-501.7569803,0.00029452,5]
[359221794,1745837436870,-500.6139638,0.00029452,3]
[359221795,1745837436880,-288.59870689,0.00029502,2]
[359221796,1745837436890,-288.59870692,0.00029625,2]
[359221797,1745837436903,-500.0,0.00029873,5]
[359221798,1745837436913,-559.7063246,0.00029904,5]
[359221799,1745837436923,-537.17424923,0.00029969,9]
[359221800,1745837436932,-500.0,0.00029973,5]
[359221801,1745837436943,-155.75949156,0.00029973,5]
[359221802,1745837436952,-500.76635225,0.00029973,5]
[359221803,1745837436962,-500.0,0.00029973,5]
[359221804,1745837436973,-500.0,0.00029973,5]
[359221805,1745837436983,-7028.02866828,0.0002999,2]
[359221806,1745837436992,-122195.61702887,0.0003,15]
[359221807,1745837437002,-3219.21977048,0.0003,120]
[359221808,1745837437012,-949.93735693,0.0003,30]
[359221809,1745837437022,-243.01791056,0.0003,2]
[359221810,1745837437031,-10044.50077129,0.0003,2]
[359221811,1745837437041,-160.0,0.0003,30]
[359221812,1745837437051,-259.0,0.0003,2]
[359221813,1745837437060,-823.0,0.00030065,2]
[359221814,1745837437069,-1180.88,0.000302,2]
[359221815,1745837437079,-1003.28532879,0.00030352,5]
[359221816,1745837437089,-503.55649672,0.00030352,5]
[359221817,1745837437099,-1000.61736159,0.00030352,5]
[359221818,1745837437108,-500.0,0.00030352,5]
[359221819,1745837437118,-500.98923359,0.00030352,5]
[359221820,1745837437127,-528.54328406,0.00030352,5]
[359221821,1745837437137,-1000.0,0.00030352,5]
[359221822,1745837437146,-660.52038394,0.00030352,5]
[359221823,1745837437155,-1001.30879091,0.00030352,5]
[359221824,1745837437164,-1000.0,0.00030352,5]
[359221825,1745837437174,-537.17424923,0.00030521,9]
[359221826,1745837437183,-1500.0,0.00030548,5]
[359221827,1745837437193,-500.74727161,0.00030552,5]
[359221828,1745837437202,-908.9530835,0.00030602,2]
[359221829,1745837437211,-500.0,0.00030668,5]
[359221830,1745837437220,-287.07655,0.000307,120]
[359221831,1745837437229,-231.28369723,0.00030765,2]
[359221832,1745837437239,-338.564959,0.00030889,2]
[359221833,1745837437250,-305.30697285,0.00030893,5]
[359221834,1745837437259,-301.49352377,0.0003099,2]
[359221835,1745837437269,-1000.0,0.00031,120]
[359221836,1745837437278,-537.17424923,0.00031072,9]
[359221837,1745837437287,-5000.0,0.00031112,2]
[359221838,1745837437298,-500.0,0.00031173,5]
[359221839,1745837437307,-1000.09076406,0.00031216,5]
[359221840,1745837437317,-160.0,0.00031291,2]
[359221841,1745837437326,-160.0,0.00031291,2]
[359221842,1745837437335,-840.59878455,0.00031291,2]
[359221843,1745837437345,-160.0,0.00031291,2]
[359221844,1745837437354,-421.20781996,0.00031291,2]
[359221845,1745837437363,-160.0,0.00031291,2]
[359221846,1745837437373,-160.0,0.00031291,2]
[359221847,1745837437382,-313.28589057,0.00031291,2]
[359221848,1745837437391,-160.0,0.00031291,2]
[359221849,1745837437400,-160.0,0.00031291,2]
[359221850,1745837437409,-12586.92143865,0.00031291,2]
[359221851,1745837437418,-2342.67622276,0.00031342,2]
[359221852,1745837437427,-1000.0,0.00031352,5]
[359221853,1745837437437,-192.21030672,0.00031352,5]
[359221854,1745837437446,-500.0,0.00031352,5]
[359221855,1745837437455,-1005.11699025,0.00031352,5]
[359221856,1745837437464,-518.84605522,0.00031352,5]
[359221857,1745837437474,-537.17424923,0.00031624,10]
[359221858,1745837437484,-1000.0,0.000318,8]
[359221859,1745837437493,-421.20781996,0.00031963,120]
[359221860,1745837437504,-3983.667456,0.00031963,120]
[359221861,1745837437513,-160.0,0.00032,120]
[359221862,1745837437522,-313.28589057,0.00032,120]
[359221863,1745837437532,-160.0,0.00032,120]
[359221864,1745837437541,-160.0,0.00032,120]
[359221865,1745837437551,-1000.0,0.00032052,5]
[359221866,1745837437560,-1000.0,0.00032052,5]
[359221867,1745837437569,-1000.0,0.00032052,5]
[359221868,1745837437579,-154.94,0.000321,31]
[359221869,1745837437589,-154.94,0.000321,31]
[359221870,1745837437598,-239.84119403,0.00032134,2]
[359221871,1745837437607,-537.17424923,0.00032176,10]
[359221872,1745837437617,-545.0,0.00032189,2]
[359221873,1745837437626,-707.0,0.00032189,2]
[359221874,1745837437636,-2245.0,0.00032189,2]
[359221875,1745837437646,-403.0,0.00032189,2]
[359221876,1745837437656,-1800.0,0.00032192,5]
[359221877,1745837437665,-287.07655,0.000323,120]
[359221878,1745837437675,-313.794,0.00032423,32]
[359221879,1745837437686,-2000.0,0.000325,3]
[359221880,1745837437696,-2000.0,0.000325,5]
[359221881,1745837437705,-2000.0,0.000325,3]
[359221882,1745837437715,-5000.0,0.00032541,2]
[359221883,1745837437724,-1152.0,0.00032619,2]
[359221884,1745837437733,-151.915468,0.00032711,7]
[359221885,1745837437742,-537.17424923,0.00032728,10]
[359221886,1745837437756,-254.858,0.00032778,2]
[359221887,1745837437765,-908.9530835,0.00032836,2]
[359221888,1745837437775,-504.61757678,0.00032852,5]
[359221889,1745837437784,-2342.67622276,0.00032867,2]
[359221890,1745837437794,-179.50679393,0.00032876,2]
[359221891,1745837437805,-270.9542271,0.00032877,120]
[359221892,1745837437815,-1000.0,0.00032877,5]
[359221893,1745837437824,-957.65,0.000329,7]
[359221894,1745837437834,-1000.0,0.00033,120]
[359221895,1745837437844,-1000.0,0.00033,120]
[359221896,1745837437853,-259.0,0.00033,2]
[359221897,1745837437863,-259.0,0.00033,2]
[359221898,1745837437873,-12500.0,0.0003315,5]
[359221902,1745837437993,-2347.12403862,0.0003315,5]
[359221903,1745837438010,-151.0,0.00033165,14]
[359221904,1745837438020,-151.0,0.00033165,14]
[359221905,1745837438030,-1204.578187,0.00033165,2]
[359221906,1745837438039,-537.17424923,0.00033279,11]
[359221907,1745837438049,-248.71531821,0.00033503,2]
[359221908,1745837438058,-537.17424923,0.00033831,11]
[359221910,1745837438069,-2100.0,0.00033836,5]
[359221911,1745837438078,-287.07655,0.000339,120]
[359221912,1745837438088,-600.0,0.00033928,2]
[359221913,1745837438098,-5000.0,0.00033969,2]
[359221915,1745837438107,-2342.67622276,0.0003399,2]
[359221916,1745837438117,-957.65,0.00034,7]
[359221917,1745837438127,-4767.66956865,0.00034,7]
[359221918,1745837438136,-160.0,0.00034,3]
[359221920,1745837438147,-152.031868,0.00034,14]
[359221922,1745837438156,-153.526235,0.00034,14]
[359221924,1745837438165,-840.59878455,0.00034,7]
[359221926,1745837438174,-313.28589057,0.00034,7]
[359221928,1745837438183,-160.0,0.00034,7]
[359221930,1745837438192,-160.0,0.00034,7]
[359221932,1745837438201,-160.0,0.00034,7]
[359221934,1745837438210,-421.20781996,0.00034,7]
[359221936,1745837438220,-160.0,0.00034,7]
[359221938,1745837438230,-600.0,0.00034282,2]
[359221940,1745837438240,-1559.168914,0.000343,18]
[359221942,1745837438252,-338.564959,0.00034313,2]
[359221944,1745837438262,-537.17424923,0.00034383,11]
[359221946,1745837438271,-2200.0,0.0003444,7]
[359221948,1745837438280,-600.0,0.00034635,2]
[359221951,1745837438290,-1328.33993769,0.0003464,13]
[359221953,1745837438300,-1336.51214563,0.00034728,12]
[359221954,1745837438309,-1500.0,0.000348,18]
[359221955,1745837438318,-3144.76702654,0.0003487,4]
[359221957,1745837438328,-384.25286316,0.00034872,2]
[359221958,1745837438337,-154.94,0.000349,31]
[359221959,1745837438346,-154.94,0.000349,31]
[359221961,1745837438355,-537.17424923,0.00034934,12]
[359221963,1745837438364,-769.76,0.00034988,2]
[359221964,1745837438373,-769.76,0.00034988,2]
[359221965,1745837438382,-769.76,0.00034988,2]
[359221967,1745837438392,-769.76,0.00034988,2]
[359221969,1745837438400,-769.76,0.00034988,2]
[359221971,1745837438409,-769.76,0.00034988,2]
[359221973,1745837438418,-769.76,0.00034988,2]
[359221975,1745837438427,-769.76,0.00034988,2]
[359221977,1745837438436,-600.0,0.00034989,2]
[359221979,1745837438446,-2342.67622276,0.0003499,2]
[359221981,1745837438456,-299.999999,0.00035,2]
[359221983,1745837438465,-10591.14147313,0.00035,2]
[359221986,1745837438475,-2000.0,0.00035,3]
[359221988,1745837438485,-1990.90474195,0.00035,3]
[359221993,1745837438518,-9.09525805,0.00035,3]
[359221995,1745837438527,-1023.00803308,0.00035,3]
[359222022,1745837439114,-317.813386,0.0002937,15]
[359222023,1745837439123,-769.76,0.00034988,2]
[359222024,1745837439133,-769.76,0.00034988,2]
[359222025,1745837439142,-28.666614,0.00035,3]
[359222026,1745837439153,-856.93763268,0.00035,3]
[359222027,1745837439165,-91.38772024,0.00035,3]
[359222028,1745837439175,-2000.0,0.00035,3]
[359222029,1745837439184,-2000.0,0.00035,3]
[359222030,1745837439193,-204.87175,0.00035,5]
[359222031,1745837439203,-204.87175,0.00035,5]
[359222032,1745837439213,-1000.0,0.00035,120]
[359222033,1745837439222,-7116.70238986,0.00035,10]
[359222034,1745837439232,-151.0,0.00035,19]
[359222035,1745837439241,-160.0,0.00035,3]
[359222036,1745837439252,-840.59878455,0.00035,3]
[359222037,1745837439261,-840.59878455,0.00035,10]
[359222038,1745837439270,-313.28589057,0.00035,3]
[359222039,1745837439279,-160.0,0.00035,3]
[359222040,1745837439290,-160.0,0.00035,10]
[359222041,1745837439300,-160.0,0.00035,3]